[Event "*** SCC Grand Prix: Titled Tuesday Blitz"]
[Site "Chess.com"]
[Date "2020.07.21"]
[Round "8"]
[White "wonderfultime"]
[Black "BakaPG"]
[Result "1-0"]
[WhiteElo "2962"]
[BlackElo "2653"]
[TimeControl "180+1"]
[EndTime "11:37:33 PDT"]
[Termination "wonderfultime won on time"]

1. d4 {[%clk 0:02:58.9]} 1... d5 {[%clk 0:02:58.8]} 2. Nf3 {[%clk 0:02:59]} 2...
Nf6 {[%clk 0:02:58.3]} 3. Bf4 {[%clk 0:02:57.1]} 3... c5 {[%clk 0:02:58]} 4. c3
{[%clk 0:02:57.5]} 4... Nc6 {[%clk 0:02:54.3]} 5. e3 {[%clk 0:02:57.5]} 5... Qb6
{[%clk 0:02:53.1]} 6. Qc2 {[%clk 0:02:57.7]} 6... Bf5 {[%clk 0:02:41.2]} 7. dxc5
{[%clk 0:02:55.5]} 7... Bxc2 {[%clk 0:02:40.4]} 8. cxb6 {[%clk 0:02:54.2]} 8...
axb6 {[%clk 0:02:40.5]} 9. Na3 {[%clk 0:02:55.1]} 9... e5 {[%clk 0:02:14.4]} 10.
Nxc2 {[%clk 0:02:44.5]} 10... exf4 {[%clk 0:02:13.8]} 11. exf4 {[%clk
0:02:45.4]} 11... Bd6 {[%clk 0:02:12.5]} 12. g3 {[%clk 0:02:43.1]} 12... O-O
{[%clk 0:02:09.7]} 13. Bd3 {[%clk 0:02:41.6]} 13... Rfe8+ {[%clk 0:02:06.9]} 14.
Kf1 {[%clk 0:02:40.8]} 14... Ne4 {[%clk 0:02:02.8]} 15. Kg2 {[%clk 0:02:39.6]}
15... Nc5 {[%clk 0:02:02.4]} 16. Bb5 {[%clk 0:02:37.6]} 16... Red8 {[%clk
0:01:48.3]} 17. Rhd1 {[%clk 0:02:35.9]} 17... Bf8 {[%clk 0:01:47.5]} 18. Ne3
{[%clk 0:02:34.4]} 18... Ne7 {[%clk 0:01:33.2]} 19. Nd4 {[%clk 0:02:32.6]} 19...
g6 {[%clk 0:01:29.7]} 20. Be2 {[%clk 0:02:31.4]} 20... Na4 {[%clk 0:01:28.5]}
21. Rd2 {[%clk 0:02:30.8]} 21... Bg7 {[%clk 0:01:25.3]} 22. Nb5 {[%clk
0:02:27.9]} 22... Rd7 {[%clk 0:01:18.6]} 23. Rad1 {[%clk 0:02:25.4]} 23... Rad8
{[%clk 0:01:17.2]} 24. Bf3 {[%clk 0:02:19.9]} 24... Kf8 {[%clk 0:01:12.5]} 25.
Bg4 {[%clk 0:02:12.4]} 25... f5 {[%clk 0:01:09.7]} 26. Bf3 {[%clk 0:02:12.9]}
26... Bf6 {[%clk 0:01:06]} 27. Re1 {[%clk 0:02:08]} 27... Nc5 {[%clk 0:01:03.7]}
28. Nd4 {[%clk 0:02:03.7]} 28... Kf7 {[%clk 0:01:02.6]} 29. Nb3 {[%clk
0:01:56.4]} 29... Na4 {[%clk 0:00:59.5]} 30. Be2 {[%clk 0:01:54.4]} 30... Nxb2
{[%clk 0:00:55.7]} 31. Rxb2 {[%clk 0:01:38]} 31... Bxc3 {[%clk 0:00:54.7]} 32.
Reb1 {[%clk 0:01:38.9]} 32... Bxb2 {[%clk 0:00:48.5]} 33. Rxb2 {[%clk
0:01:39.8]} 33... Nc6 {[%clk 0:00:42.8]} 34. Bf3 {[%clk 0:01:38.8]} 34... Kf6
{[%clk 0:00:38.2]} 35. Rd2 {[%clk 0:01:36.3]} 35... d4 {[%clk 0:00:33.9]} 36.
Nc4 {[%clk 0:01:35.1]} 36... b5 {[%clk 0:00:33.6]} 37. Bxc6 {[%clk 0:01:27.2]}
37... bxc6 {[%clk 0:00:28.4]} 38. Ne5 {[%clk 0:01:26.9]} 38... Rd6 {[%clk
0:00:27.2]} 39. Kf3 {[%clk 0:01:24.7]} 39... Ra8 {[%clk 0:00:25]} 40. Ke2 {[%clk
0:01:17.4]} 40... d3+ {[%clk 0:00:21.8]} 41. Nxd3 {[%clk 0:01:17.1]} 41... h6
{[%clk 0:00:19.8]} 42. Rc2 {[%clk 0:01:16.4]} 42... Re8+ {[%clk 0:00:19]} 43.
Ne5 {[%clk 0:01:16.5]} 43... g5 {[%clk 0:00:18.8]} 44. Kf3 {[%clk 0:01:15.7]}
44... gxf4 {[%clk 0:00:15.8]} 45. gxf4 {[%clk 0:01:16.6]} 45... Ree6 {[%clk
0:00:14]} 46. Rc1 {[%clk 0:01:12.8]} 46... Re7 {[%clk 0:00:13.1]} 47. Rc2 {[%clk
0:00:55.4]} 47... Ra7 {[%clk 0:00:11.5]} 48. Nxc6 {[%clk 0:00:47.2]} 48... Rc7
{[%clk 0:00:10.8]} 49. Nb4 {[%clk 0:00:47.6]} 49... Rc4 {[%clk 0:00:09.1]} 50.
Rxc4 {[%clk 0:00:40.4]} 50... bxc4 {[%clk 0:00:09.2]} 51. Nc1 {[%clk 0:00:36.5]}
51... Rd1 {[%clk 0:00:07]} 52. Ne2 {[%clk 0:00:35]} 52... Rb1 {[%clk 0:00:07]}
53. Nd5+ {[%clk 0:00:34.8]} 53... Ke6 {[%clk 0:00:06.3]} 54. Ndc3 {[%clk
0:00:35.2]} 54... Ra1 {[%clk 0:00:04.4]} 55. Ke3 {[%clk 0:00:35.4]} 55... Kd6
{[%clk 0:00:02.1]} 56. Kd4 {[%clk 0:00:32.7]} 56... Rh1 {[%clk 0:00:03]} 57. Ng3
{[%clk 0:00:32.4]} 57... Rxh2 {[%clk 0:00:02.3]} 58. Nxf5+ {[%clk 0:00:33.3]}
58... Ke6 {[%clk 0:00:02.8]} 59. Ke4 {[%clk 0:00:26.1]} 59... Rxf2 {[%clk
0:00:02.7]} 60. Nxh6 {[%clk 0:00:26.3]} 60... Rc2 {[%clk 0:00:02]} 61. Kd4
{[%clk 0:00:26.6]} 61... Rf2 {[%clk 0:00:02.1]} 62. f5+ {[%clk 0:00:26.9]} 62...
Ke7 {[%clk 0:00:02.4]} 63. Kxc4 {[%clk 0:00:25.1]} 63... Rf4+ {[%clk 0:00:02.5]}
64. Kc5 {[%clk 0:00:25.4]} 64... Rh4 {[%clk 0:00:01.6]} 65. f6+ {[%clk 0:00:09]}
65... Kf8 {[%clk 0:00:02.3]} 66. Nd5 {[%clk 0:00:09.6]} 66... Rxh6 {[%clk
0:00:02.3]} 67. a4 {[%clk 0:00:10.5]} 67... Rh4 {[%clk 0:00:02.2]} 68. a5 {[%clk
0:00:11]} 68... Ra4 {[%clk 0:00:02.2]} 69. Kb5 {[%clk 0:00:11.1]} 69... Ra1
{[%clk 0:00:02.2]} 70. a6 {[%clk 0:00:11.7]} 70... Kf7 {[%clk 0:00:02.7]} 71.
Kb6 {[%clk 0:00:08.3]} 71... Ke6 {[%clk 0:00:03.1]} 72. f7 {[%clk 0:00:07.6]}
72... Kxf7 {[%clk 0:00:02]} 73. a7 {[%clk 0:00:07]} 73... Ra6+ {[%clk
0:00:02.7]} 74. Kxa6 {[%clk 0:00:07]} 1-0

[Event "*** SCC Grand Prix: Titled Tuesday Blitz"]
[Site "Chess.com"]
[Date "2020.07.21"]
[Round "8"]
[White "Rodalquilar"]
[Black "Bigfish1995"]
[Result "1/2-1/2"]
[WhiteElo "2665"]
[BlackElo "3001"]
[TimeControl "180+1"]
[EndTime "11:37:47 PDT"]
[Termination "Game drawn by stalemate"]

1. d4 {[%clk 0:03:00.9]} 1... Nf6 {[%clk 0:02:53.1]} 2. Bf4 {[%clk 0:03:01.1]}
2... c5 {[%clk 0:02:50.8]} 3. e3 {[%clk 0:03:01.6]} 3... Qb6 {[%clk 0:02:44]} 4.
Nc3 {[%clk 0:03:01.2]} 4... d6 {[%clk 0:02:40.9]} 5. Rb1 {[%clk 0:02:55.8]} 5...
g6 {[%clk 0:02:37.8]} 6. dxc5 {[%clk 0:02:52.8]} 6... Qxc5 {[%clk 0:02:36.2]} 7.
Nf3 {[%clk 0:02:52.8]} 7... Bg7 {[%clk 0:02:35]} 8. Be2 {[%clk 0:02:35.1]} 8...
O-O {[%clk 0:02:32.7]} 9. O-O {[%clk 0:02:35.4]} 9... Bd7 {[%clk 0:02:24.3]} 10.
e4 {[%clk 0:02:31.4]} 10... Nc6 {[%clk 0:02:13.8]} 11. h3 {[%clk 0:02:23.9]}
11... Rac8 {[%clk 0:02:08.6]} 12. Re1 {[%clk 0:02:23.9]} 12... Rfd8 {[%clk
0:01:51.4]} 13. a3 {[%clk 0:02:18.3]} 13... Qa5 {[%clk 0:01:34.6]} 14. Bf1
{[%clk 0:02:13.2]} 14... Be6 {[%clk 0:01:32.7]} 15. Ng5 {[%clk 0:02:10]} 15...
Bd7 {[%clk 0:01:29.2]} 16. Bc4 {[%clk 0:02:03.2]} 16... Ne5 {[%clk 0:01:22.2]}
17. Bb3 {[%clk 0:01:53.7]} 17... h6 {[%clk 0:01:17.6]} 18. Bxe5 {[%clk
0:01:20.8]} 18... hxg5 {[%clk 0:01:15.2]} 19. Bd4 {[%clk 0:01:21.3]} 19... e6
{[%clk 0:01:01]} 20. e5 {[%clk 0:00:36.4]} 20... Ne8 {[%clk 0:01:00.7]} 21. exd6
{[%clk 0:00:30.9]} 21... Bc6 {[%clk 0:00:44.1]} 22. Bxg7 {[%clk 0:00:26.8]}
22... Nxg7 {[%clk 0:00:34.4]} 23. Qd4 {[%clk 0:00:21.5]} 23... Nf5 {[%clk
0:00:33.4]} 24. Qf6 {[%clk 0:00:21.4]} 24... Rxd6 {[%clk 0:00:26.8]} 25. Bxe6
{[%clk 0:00:09.8]} 25... fxe6 {[%clk 0:00:20.8]} 26. Rxe6 {[%clk 0:00:10.7]}
26... Rd7 {[%clk 0:00:09.3]} 27. Qxg5 {[%clk 0:00:11]} 27... Rg7 {[%clk
0:00:05.7]} 28. Rxg6 {[%clk 0:00:09.8]} 28... Qe5 {[%clk 0:00:05.9]} 29. Rxg7+
{[%clk 0:00:08.2]} 29... Qxg7 {[%clk 0:00:06.1]} 30. Qxg7+ {[%clk 0:00:07]}
30... Kxg7 {[%clk 0:00:07]} 31. Re1 {[%clk 0:00:05.9]} 31... Nd4 {[%clk
0:00:06.7]} 32. Rc1 {[%clk 0:00:02.8]} 32... Kf6 {[%clk 0:00:05.9]} 33. f3
{[%clk 0:00:03.2]} 33... b5 {[%clk 0:00:04.4]} 34. Kf2 {[%clk 0:00:03.7]} 34...
a5 {[%clk 0:00:04.8]} 35. Ke3 {[%clk 0:00:03.6]} 35... Nf5+ {[%clk 0:00:05.4]}
36. Kf4 {[%clk 0:00:04.1]} 36... Bb7 {[%clk 0:00:02.9]} 37. g4 {[%clk
0:00:04.2]} 37... Rc4+ {[%clk 0:00:03.1]} 38. Ne4+ {[%clk 0:00:04.7]} 38... Bxe4
{[%clk 0:00:02.5]} 39. fxe4 {[%clk 0:00:05.6]} 39... Nd4 {[%clk 0:00:03]} 40.
Rf1 {[%clk 0:00:02.8]} 40... Nxc2 {[%clk 0:00:02.3]} 41. g5+ {[%clk 0:00:02.3]}
41... Kg6 {[%clk 0:00:02.9]} 42. h4 {[%clk 0:00:02.8]} 42... Nd4 {[%clk
0:00:03.3]} 43. Rh1 {[%clk 0:00:02.7]} 43... Ne6+ {[%clk 0:00:03.5]} 44. Ke5
{[%clk 0:00:02.6]} 44... Ng7 {[%clk 0:00:04.4]} 45. h5+ {[%clk 0:00:01.6]} 45...
Nxh5 {[%clk 0:00:04.5]} 46. Rg1 {[%clk 0:00:02.5]} 46... Ng7 {[%clk 0:00:04.5]}
47. Kd5 {[%clk 0:00:02.9]} 47... Ne8 {[%clk 0:00:04.9]} 48. e5 {[%clk
0:00:03.3]} 48... Nc7+ {[%clk 0:00:05.4]} 49. Kd6 {[%clk 0:00:03.9]} 49... Kf7
{[%clk 0:00:05.3]} 50. g6+ {[%clk 0:00:03.9]} 50... Kg7 {[%clk 0:00:04.5]} 51.
e6 {[%clk 0:00:04.5]} 51... Ne8+ {[%clk 0:00:05.1]} 52. Kd7 {[%clk 0:00:04.2]}
52... Nf6+ {[%clk 0:00:05.4]} 53. Kd6 {[%clk 0:00:04.9]} 53... Rc2 {[%clk
0:00:05.3]} 54. b4 {[%clk 0:00:04.5]} 54... a4 {[%clk 0:00:05]} 55. e7 {[%clk
0:00:04.6]} 55... Rd2+ {[%clk 0:00:05]} 56. Kc5 {[%clk 0:00:04.6]} 56... Rd5+
{[%clk 0:00:04.6]} 57. Kc6 {[%clk 0:00:04.5]} 57... Re5 {[%clk 0:00:05.2]} 58.
Rd1 {[%clk 0:00:03.8]} 58... Kxg6 {[%clk 0:00:05]} 59. Rc1 {[%clk 0:00:03.4]}
59... Kf7 {[%clk 0:00:05.1]} 60. Rc5 {[%clk 0:00:03.6]} 60... Re3 {[%clk
0:00:04.9]} 61. Kxb5 {[%clk 0:00:03]} 61... Rxa3 {[%clk 0:00:05.1]} 62. Rc7
{[%clk 0:00:03.7]} 62... Ra1 {[%clk 0:00:04.8]} 63. Ra7 {[%clk 0:00:04.1]} 63...
a3 {[%clk 0:00:05.3]} 64. Ka4 {[%clk 0:00:04.7]} 64... Ne4 {[%clk 0:00:04.9]}
65. Kb3 {[%clk 0:00:04.8]} 65... Nd2+ {[%clk 0:00:05.1]} 66. Kc2 {[%clk
0:00:05.3]} 66... Nc4 {[%clk 0:00:04.4]} 67. Kb3 {[%clk 0:00:05.8]} 67... Rc1
{[%clk 0:00:04.5]} 68. b5 {[%clk 0:00:05.4]} 68... Nd6 {[%clk 0:00:02.8]} 69.
Rxa3 {[%clk 0:00:04.2]} 69... Nxb5 {[%clk 0:00:02.9]} 70. Ra5 {[%clk 0:00:04.5]}
70... Nd4+ {[%clk 0:00:03]} 71. Kb2 {[%clk 0:00:04.4]} 71... Rc2+ {[%clk
0:00:03.4]} 72. Kb1 {[%clk 0:00:04.7]} 72... Re2 {[%clk 0:00:03.9]} 73. Ra7
{[%clk 0:00:03.8]} 73... Nc6 {[%clk 0:00:03.5]} 74. Rc7 {[%clk 0:00:04]} 74...
Nxe7 {[%clk 0:00:03.6]} 75. Rc2 {[%clk 0:00:04.3]} 75... Re3 {[%clk 0:00:03.7]}
76. Rf2+ {[%clk 0:00:04.6]} 76... Ke6 {[%clk 0:00:03.5]} 77. Kc1 {[%clk
0:00:05.5]} 77... Nd5 {[%clk 0:00:03.9]} 78. Kd1 {[%clk 0:00:05.9]} 78... Ra3
{[%clk 0:00:04.4]} 79. Re2+ {[%clk 0:00:06]} 79... Kf5 {[%clk 0:00:04.9]} 80.
Rh2 {[%clk 0:00:06.9]} 80... Nc3+ {[%clk 0:00:04.2]} 81. Kc1 {[%clk 0:00:06.6]}
81... Ra1+ {[%clk 0:00:03.9]} 82. Kb2 {[%clk 0:00:03.5]} 82... Ra2+ {[%clk
0:00:04.4]} 83. Kc1 {[%clk 0:00:04.4]} 83... Rxh2 {[%clk 0:00:05.1]} 1/2-1/2

[Event "*** SCC Grand Prix: Titled Tuesday Blitz"]
[Site "Chess.com"]
[Date "2020.07.21"]
[Round "8"]
[White "Speshka"]
[Black "pfalcon1949"]
[Result "1-0"]
[WhiteElo "2224"]
[BlackElo "2007"]
[TimeControl "180+1"]
[EndTime "11:37:49 PDT"]
[Termination "Speshka won by checkmate"]

1. e4 {[%clk 0:03:00.9]} 1... e6 {[%clk 0:02:59.1]} 2. Nf3 {[%clk 0:02:57.7]}
2... d5 {[%clk 0:02:59]} 3. e5 {[%clk 0:02:57.6]} 3... c5 {[%clk 0:02:58.8]} 4.
b4 {[%clk 0:02:57.4]} 4... cxb4 {[%clk 0:02:58.6]} 5. a3 {[%clk 0:02:57.1]} 5...
Nc6 {[%clk 0:02:58.7]} 6. axb4 {[%clk 0:02:56.3]} 6... Bxb4 {[%clk 0:02:58.8]}
7. c3 {[%clk 0:02:56.4]} 7... Ba5 {[%clk 0:02:57.2]} 8. Bb5 {[%clk 0:02:46.8]}
8... Bd7 {[%clk 0:02:54.2]} 9. Qa4 {[%clk 0:02:44.1]} 9... Bc7 {[%clk
0:02:48.1]} 10. Qg4 {[%clk 0:02:38.6]} 10... Kf8 {[%clk 0:02:35.1]} 11. Bxc6
{[%clk 0:02:21.8]} 11... Bxc6 {[%clk 0:02:23.1]} 12. d4 {[%clk 0:02:19.7]} 12...
h6 {[%clk 0:02:21.8]} 13. O-O {[%clk 0:02:16.3]} 13... Ne7 {[%clk 0:02:21.2]}
14. Ba3 {[%clk 0:02:11.7]} 14... Kg8 {[%clk 0:02:19.1]} 15. Nh4 {[%clk
0:02:08.1]} 15... Kh7 {[%clk 0:02:11.1]} 16. f4 {[%clk 0:02:05.3]} 16... Bd7
{[%clk 0:02:05.6]} 17. Qf3 {[%clk 0:02:00.1]} 17... Ng6 {[%clk 0:01:55.1]} 18.
Nxg6 {[%clk 0:01:50.5]} 18... fxg6 {[%clk 0:01:56]} 19. Nd2 {[%clk 0:01:43.4]}
19... Qe8 {[%clk 0:01:46.2]} 20. Qg4 {[%clk 0:01:40.4]} 20... Qf7 {[%clk
0:01:44.6]} 21. c4 {[%clk 0:01:35.8]} 21... Bc6 {[%clk 0:01:37.5]} 22. cxd5
{[%clk 0:01:32.3]} 22... Bxd5 {[%clk 0:01:36.4]} 23. Rac1 {[%clk 0:01:28.6]}
23... Bb6 {[%clk 0:01:36.2]} 24. Bc5 {[%clk 0:01:27.1]} 24... Rhc8 {[%clk
0:01:28.8]} 25. Bxb6 {[%clk 0:01:23.9]} 25... axb6 {[%clk 0:01:29.7]} 26. Qe2
{[%clk 0:01:14.8]} 26... Qd7 {[%clk 0:01:21.3]} 27. Ne4 {[%clk 0:01:05]} 27...
Ra2 {[%clk 0:01:05]} 28. Qd3 {[%clk 0:01:04.2]} 28... Rxc1 {[%clk 0:00:51.5]}
29. Rxc1 {[%clk 0:01:03.1]} 29... Qa4 {[%clk 0:00:50.1]} 30. Kh1 {[%clk
0:00:44.3]} 30... Ra1 {[%clk 0:00:47.3]} 31. Rg1 {[%clk 0:00:37.6]} 31... Ra3
{[%clk 0:00:37.2]} 32. Qb1 {[%clk 0:00:30.6]} 32... Qxd4 {[%clk 0:00:31.8]} 33.
Nd6 {[%clk 0:00:30.2]} 33... Ra2 {[%clk 0:00:29.2]} 34. f5 {[%clk 0:00:19.8]}
34... gxf5 {[%clk 0:00:22.1]} 35. Nxf5 {[%clk 0:00:18.8]} 35... Be4 {[%clk
0:00:20.3]} 36. Nxd4 {[%clk 0:00:17.2]} 36... Bxb1 {[%clk 0:00:19.1]} 37. Rxb1
{[%clk 0:00:17.1]} 37... Rd2 {[%clk 0:00:19.1]} 38. Nxe6 {[%clk 0:00:16.5]}
38... Re2 {[%clk 0:00:19.2]} 39. h4 {[%clk 0:00:13.7]} 39... Rxe5 {[%clk
0:00:19.1]} 40. Rxb6 {[%clk 0:00:13.6]} 40... Re1+ {[%clk 0:00:18]} 41. Kh2
{[%clk 0:00:12.8]} 41... Re4 {[%clk 0:00:18.1]} 42. Kh3 {[%clk 0:00:12.7]} 42...
Re3+ {[%clk 0:00:17.8]} 43. g3 {[%clk 0:00:12.7]} 43... Re1 {[%clk 0:00:18.7]}
44. Nf4 {[%clk 0:00:11.8]} 44... Re4 {[%clk 0:00:18]} 45. Kg4 {[%clk 0:00:12.2]}
45... Re7 {[%clk 0:00:16.1]} 46. Kf5 {[%clk 0:00:11.4]} 46... Rf7+ {[%clk
0:00:15.7]} 47. Ke6 {[%clk 0:00:10.9]} 47... Rc7 {[%clk 0:00:15.6]} 48. Kd6
{[%clk 0:00:10.8]} 48... Rf7 {[%clk 0:00:15.6]} 49. Ke5 {[%clk 0:00:10.8]} 49...
Re7+ {[%clk 0:00:15.6]} 50. Kf5 {[%clk 0:00:10.3]} 50... Rc7 {[%clk 0:00:15.7]}
51. Nd5 {[%clk 0:00:09.9]} 51... Rc5 {[%clk 0:00:15.9]} 52. Ke4 {[%clk 0:00:09]}
52... Rc4+ {[%clk 0:00:15.6]} 53. Kd3 {[%clk 0:00:08.5]} 53... Rg4 {[%clk
0:00:15.7]} 54. Rxb7 {[%clk 0:00:07.5]} 54... Rxg3+ {[%clk 0:00:16.3]} 55. Ke2
{[%clk 0:00:06.3]} 55... Rg4 {[%clk 0:00:16.9]} 56. Nf6+ {[%clk 0:00:04.9]}
56... Kg6 {[%clk 0:00:15.2]} 57. Nxg4 {[%clk 0:00:04.4]} 57... Kh5 {[%clk
0:00:15.4]} 58. Kf3 {[%clk 0:00:04.3]} 58... g6 {[%clk 0:00:15.4]} 59. Rg7
{[%clk 0:00:05]} 59... g5 {[%clk 0:00:15.2]} 60. hxg5 {[%clk 0:00:04.1]} 60...
hxg5 {[%clk 0:00:14.2]} 61. Rh7+ {[%clk 0:00:05]} 61... Kg6 {[%clk 0:00:14.4]}
62. Rh6+ {[%clk 0:00:05.3]} 62... Kg7 {[%clk 0:00:13.3]} 63. Ke4 {[%clk
0:00:04.5]} 63... Kf7 {[%clk 0:00:12.2]} 64. Kf5 {[%clk 0:00:05.1]} 64... Kg7
{[%clk 0:00:13.1]} 65. Kxg5 {[%clk 0:00:06]} 65... Kf7 {[%clk 0:00:13.3]} 66.
Ra6 {[%clk 0:00:06.3]} 66... Ke7 {[%clk 0:00:13.4]} 67. Kf5 {[%clk 0:00:06.9]}
67... Kd7 {[%clk 0:00:13.9]} 68. Ke5 {[%clk 0:00:07.2]} 68... Kc7 {[%clk
0:00:14.8]} 69. Kd5 {[%clk 0:00:07.8]} 69... Kb7 {[%clk 0:00:15.7]} 70. Rh6
{[%clk 0:00:08]} 70... Kc7 {[%clk 0:00:15.6]} 71. Kc5 {[%clk 0:00:08.5]} 71...
Kd7 {[%clk 0:00:15.6]} 72. Kd5 {[%clk 0:00:08.6]} 72... Ke7 {[%clk 0:00:16.5]}
73. Ke5 {[%clk 0:00:08.7]} 73... Kf7 {[%clk 0:00:17.4]} 74. Ra6 {[%clk
0:00:08.7]} 74... Kg7 {[%clk 0:00:18.3]} 75. Kf5 {[%clk 0:00:08.1]} 75... Kf7
{[%clk 0:00:19.2]} 76. Ra7+ {[%clk 0:00:07.5]} 76... Ke8 {[%clk 0:00:18.2]} 77.
Ke6 {[%clk 0:00:07.4]} 77... Kd8 {[%clk 0:00:19.1]} 78. Rh7 {[%clk 0:00:07.3]}
78... Kc8 {[%clk 0:00:18.9]} 79. Kd6 {[%clk 0:00:08.2]} 79... Kb8 {[%clk
0:00:18.9]} 80. Kc6 {[%clk 0:00:09.1]} 80... Ka8 {[%clk 0:00:18.9]} 81. Kb6
{[%clk 0:00:09.2]} 81... Kb8 {[%clk 0:00:19.8]} 82. Rh8# {[%clk 0:00:09.3]} 1-0

[Event "*** SCC Grand Prix: Titled Tuesday Blitz"]
[Site "Chess.com"]
[Date "2020.07.21"]
[Round "8"]
[White "Iskusnyh"]
[Black "XDPS"]
[Result "1/2-1/2"]
[WhiteElo "2494"]
[BlackElo "2707"]
[TimeControl "180+1"]
[EndTime "11:37:52 PDT"]
[Termination "Game drawn by repetition"]

1. d4 {[%clk 0:03:00.9]} 1... d5 {[%clk 0:02:59.3]} 2. c4 {[%clk 0:03:01.3]}
2... c6 {[%clk 0:02:59.1]} 3. Nf3 {[%clk 0:03:01.4]} 3... Nf6 {[%clk 0:02:59.7]}
4. e3 {[%clk 0:03:01.7]} 4... e6 {[%clk 0:02:59.6]} 5. Bd3 {[%clk 0:03:00.1]}
5... Nbd7 {[%clk 0:02:55.8]} 6. b3 {[%clk 0:02:59.7]} 6... b6 {[%clk 0:02:56.3]}
7. Bb2 {[%clk 0:02:58.6]} 7... Bb7 {[%clk 0:02:56.9]} 8. O-O {[%clk 0:02:58.7]}
8... Be7 {[%clk 0:02:57.4]} 9. Nc3 {[%clk 0:02:57.9]} 9... O-O {[%clk
0:02:57.8]} 10. Qe2 {[%clk 0:02:57.8]} 10... Rc8 {[%clk 0:02:54.8]} 11. Rfd1
{[%clk 0:02:55.7]} 11... Qc7 {[%clk 0:02:54.6]} 12. Rac1 {[%clk 0:02:54.9]}
12... Qb8 {[%clk 0:02:54.9]} 13. e4 {[%clk 0:02:54.8]} 13... dxe4 {[%clk
0:02:54.6]} 14. Nxe4 {[%clk 0:02:54.5]} 14... Rfe8 {[%clk 0:02:53.9]} 15. Nxf6+
{[%clk 0:02:41.6]} 15... Bxf6 {[%clk 0:02:46.8]} 16. Ne5 {[%clk 0:02:39.4]}
16... Nxe5 {[%clk 0:02:37.3]} 17. dxe5 {[%clk 0:02:38.7]} 17... Be7 {[%clk
0:02:37.9]} 18. Be4 {[%clk 0:02:29.7]} 18... c5 {[%clk 0:02:33.9]} 19. Rd7
{[%clk 0:02:25.2]} 19... Bxe4 {[%clk 0:02:19.9]} 20. Qxe4 {[%clk 0:02:24.6]}
20... Rcd8 {[%clk 0:02:20.5]} 21. Rcd1 {[%clk 0:02:19.9]} 21... Rxd7 {[%clk
0:02:19.3]} 22. Rxd7 {[%clk 0:02:19.7]} 22... Rd8 {[%clk 0:02:19.5]} 23. Qc6
{[%clk 0:02:10.7]} 23... Rxd7 {[%clk 0:02:18.6]} 24. Qxd7 {[%clk 0:02:10.6]}
24... Bf8 {[%clk 0:02:18.7]} 25. g3 {[%clk 0:02:07.3]} 25... g6 {[%clk
0:02:18.7]} 26. h4 {[%clk 0:01:59.5]} 26... Bg7 {[%clk 0:02:17.7]} 27. a4 {[%clk
0:01:15.3]} 27... h5 {[%clk 0:01:51.5]} 28. Bc3 {[%clk 0:00:55.3]} 28... Qa8
{[%clk 0:01:48.7]} 29. Qd3 {[%clk 0:00:51.7]} 29... Qb8 {[%clk 0:01:46.5]} 30.
Qd7 {[%clk 0:00:49.6]} 30... Qa8 {[%clk 0:01:45.6]} 31. Qd3 {[%clk 0:00:49.2]}
31... Qb7 {[%clk 0:01:45.3]} 32. Qd8+ {[%clk 0:00:46.7]} 32... Kh7 {[%clk
0:01:44.4]} 33. Qd3 {[%clk 0:00:46.2]} 33... Qc7 {[%clk 0:01:41.8]} 34. Qe4
{[%clk 0:00:35.8]} 34... Qd7 {[%clk 0:01:41.6]} 35. Qe2 {[%clk 0:00:35.5]} 35...
Bh6 {[%clk 0:01:38.1]} 36. Kg2 {[%clk 0:00:34.9]} 36... Kg8 {[%clk 0:01:34.4]}
37. Qf3 {[%clk 0:00:25]} 37... Bg7 {[%clk 0:01:31]} 38. Qa8+ {[%clk 0:00:24.7]}
38... Kh7 {[%clk 0:01:30.8]} 39. Qf3 {[%clk 0:00:25.3]} 39... Bh6 {[%clk
0:01:00.6]} 40. Qe2 {[%clk 0:00:23.3]} 40... Kg7 {[%clk 0:00:58.3]} 41. Qf3
{[%clk 0:00:22.1]} 41... Kg8 {[%clk 0:00:39.9]} 42. Qa8+ {[%clk 0:00:21]} 42...
Bf8 {[%clk 0:00:40.5]} 43. Qf3 {[%clk 0:00:21.2]} 43... Be7 {[%clk 0:00:38.3]}
44. Qa8+ {[%clk 0:00:20.4]} 44... Kg7 {[%clk 0:00:38.7]} 45. Qf3 {[%clk
0:00:21]} 45... Bd8 {[%clk 0:00:38.8]} 46. Qe4 {[%clk 0:00:20.2]} 46... Qd1
{[%clk 0:00:34.3]} 47. Qf3 {[%clk 0:00:19.7]} 47... Qxb3 {[%clk 0:00:29.6]} 48.
Qd3 {[%clk 0:00:17.7]} 48... Be7 {[%clk 0:00:28.4]} 49. a5 {[%clk 0:00:17.3]}
49... Qa4 {[%clk 0:00:27.4]} 50. axb6 {[%clk 0:00:16.5]} 50... axb6 {[%clk
0:00:28.3]} 51. Qe4 {[%clk 0:00:15.8]} 51... Qd7 {[%clk 0:00:28.1]} 52. Be1
{[%clk 0:00:15.2]} 52... b5 {[%clk 0:00:27.2]} 53. cxb5 {[%clk 0:00:14.9]} 53...
Qxb5 {[%clk 0:00:28.1]} 54. Bd2 {[%clk 0:00:15.2]} 54... Qd7 {[%clk 0:00:27.6]}
55. Be3 {[%clk 0:00:14.7]} 55... Qc7 {[%clk 0:00:17.7]} 56. Qc4 {[%clk
0:00:13.7]} 56... Qc6+ {[%clk 0:00:17.8]} 57. Kh2 {[%clk 0:00:14]} 57... Qc7
{[%clk 0:00:17.1]} 58. Bf4 {[%clk 0:00:12.3]} 58... Kg8 {[%clk 0:00:16.5]} 59.
Kg1 {[%clk 0:00:11.4]} 59... Bf8 {[%clk 0:00:17]} 60. Kh2 {[%clk 0:00:11.1]}
60... Qd7 {[%clk 0:00:16.6]} 61. Kg1 {[%clk 0:00:09.9]} 61... Qc6 {[%clk
0:00:15.8]} 62. Kh2 {[%clk 0:00:08.7]} 62... Be7 {[%clk 0:00:16.1]} 63. Be3
{[%clk 0:00:08.3]} 63... Kf8 {[%clk 0:00:15.5]} 64. Bh6+ {[%clk 0:00:06.8]}
64... Ke8 {[%clk 0:00:13.5]} 65. Be3 {[%clk 0:00:07.3]} 65... Qd5 {[%clk
0:00:10.4]} 66. Qb5+ {[%clk 0:00:07.1]} 66... Qd7 {[%clk 0:00:06.9]} 67. Qb8+
{[%clk 0:00:06.3]} 67... Qd8 {[%clk 0:00:06.2]} 68. Qb5+ {[%clk 0:00:05.5]}
68... Qd7 {[%clk 0:00:05.7]} 69. Qb8+ {[%clk 0:00:05]} 69... Bd8 {[%clk
0:00:05.2]} 70. Bg5 {[%clk 0:00:04.2]} 70... Qc7 {[%clk 0:00:04.5]} 71. Qb5+
{[%clk 0:00:03.2]} 71... Kf8 {[%clk 0:00:03.1]} 72. Bxd8 {[%clk 0:00:02.3]}
72... Qxd8 {[%clk 0:00:04]} 73. Qxc5+ {[%clk 0:00:02.6]} 73... Kg7 {[%clk
0:00:04.3]} 74. Qe3 {[%clk 0:00:02.6]} 74... Qa5 {[%clk 0:00:03.9]} 75. Qf4
{[%clk 0:00:03]} 75... Kg8 {[%clk 0:00:04.2]} 76. Qf6 {[%clk 0:00:03.3]} 76...
Qd5 {[%clk 0:00:04.8]} 77. Qf4 {[%clk 0:00:02.4]} 77... Qd3 {[%clk 0:00:05]} 78.
Qf6 {[%clk 0:00:02.3]} 78... Qe2 {[%clk 0:00:04.7]} 79. Qd8+ {[%clk 0:00:01.9]}
79... Kh7 {[%clk 0:00:05]} 80. Qf6 {[%clk 0:00:02.4]} 80... Kg8 {[%clk
0:00:05.6]} 81. Qd8+ {[%clk 0:00:02.5]} 81... Kg7 {[%clk 0:00:04.6]} 82. Qf6+
{[%clk 0:00:02.9]} 82... Kg8 {[%clk 0:00:05.1]} 1/2-1/2